[Event "Late-Titled-Tuesday-Blitz-January-30-2024"]
[Site "Chess.com"]
[Date "2024.01.30"]
[Round "4"]
[White "rikchessmx"]
[Black "ninguno46"]
[Result "0-1"]
[WhiteElo "2324"]
[BlackElo "2520"]
[TimeControl "180+1"]
[EndTime "14:36:25 PST"]
[Termination "ninguno46 won by resignation"]

1. e4 {[%clk 0:03:00.9]} 1... c5 {[%clk 0:02:59.7]} 2. Nf3 {[%clk 0:02:57.7]}
2... Nc6 {[%clk 0:02:59.7]} 3. d4 {[%clk 0:02:58.3]} 3... cxd4 {[%clk
0:02:59.6]} 4. Nxd4 {[%clk 0:02:59.2]} 4... g6 {[%clk 0:02:59.8]} 5. Nxc6 {[%clk
0:02:59.1]} 5... bxc6 {[%clk 0:02:59.3]} 6. Qd4 {[%clk 0:02:59.6]} 6... Nf6
{[%clk 0:02:54.2]} 7. e5 {[%clk 0:02:59.4]} 7... Nd5 {[%clk 0:02:54.3]} 8. e6
{[%clk 0:02:59.7]} 8... f6 {[%clk 0:02:54.2]} 9. exd7+ {[%clk 0:02:59.7]} 9...
Qxd7 {[%clk 0:02:54.8]} 10. Bc4 {[%clk 0:02:59.5]} 10... Nb6 {[%clk 0:02:48.6]}
11. Qxd7+ {[%clk 0:02:58.3]} 11... Bxd7 {[%clk 0:02:47.2]} 12. Bd3 {[%clk
0:02:58.7]} 12... e5 {[%clk 0:02:46]} 13. f4 {[%clk 0:02:55.9]} 13... Bd6 {[%clk
0:02:43.6]} 14. fxe5 {[%clk 0:02:53.8]} 14... Bxe5 {[%clk 0:02:43.7]} 15. Nd2
{[%clk 0:02:53.1]} 15... O-O {[%clk 0:02:41.1]} 16. Nf3 {[%clk 0:02:50.1]} 16...
Bd6 {[%clk 0:02:39.5]} 17. Bh6 {[%clk 0:02:48.6]} 17... Rfe8+ {[%clk 0:02:38.9]}
18. Kf1 {[%clk 0:02:34.1]} 18... Nd5 {[%clk 0:02:25.9]} 19. Bc4 {[%clk
0:02:23.2]} 19... Be6 {[%clk 0:02:23.8]} 20. Bb3 {[%clk 0:02:22.4]} 20... g5
{[%clk 0:02:20.8]} 21. Nd4 {[%clk 0:02:21.2]} 21... Ne3+ {[%clk 0:02:08.3]} 22.
Kf2 {[%clk 0:02:16.9]} 22... Bxb3 {[%clk 0:02:07.7]} 23. cxb3 {[%clk 0:02:06.1]}
23... Ng4+ {[%clk 0:02:01.9]} 24. Kf3 {[%clk 0:02:04.7]} 24... Nxh6 {[%clk
0:02:01.5]} 25. Nxc6 {[%clk 0:02:04.3]} 25... g4+ {[%clk 0:01:57.9]} 26. Kf2
{[%clk 0:02:02.4]} 26... Bc5+ {[%clk 0:01:57.1]} 27. Kg3 {[%clk 0:02:02.3]}
27... Re3+ {[%clk 0:01:52.8]} 28. Kh4 {[%clk 0:02:01.9]} 28... Re4 {[%clk
0:01:45.4]} 29. a3 {[%clk 0:01:43.9]} 29... Kg7 {[%clk 0:01:41.1]} 30. b4 {[%clk
0:01:43]} 30... Kg6 {[%clk 0:01:37.8]} 31. Rhf1 {[%clk 0:01:28.2]} 31... Bd6
{[%clk 0:01:34.1]} 32. Rad1 {[%clk 0:01:24.1]} 32... Bf4 {[%clk 0:01:24]} 33.
Ne7+ {[%clk 0:01:12.7]} 33... Rxe7 {[%clk 0:01:22.2]} 34. Rxf4 {[%clk
0:01:12.3]} 34... Nf5+ {[%clk 0:01:20.8]} 0-1

[Event "Late-Titled-Tuesday-Blitz-January-30-2024"]
[Site "Chess.com"]
[Date "2024.01.30"]
[Round "4"]
[White "biostatistician"]
[Black "Szparu"]
[Result "0-1"]
[WhiteElo "2558"]
[BlackElo "2783"]
[TimeControl "180+1"]
[EndTime "14:36:31 PST"]
[Termination "Szparu won by resignation"]

1. d4 {[%clk 0:03:00.2]} 1... d5 {[%clk 0:02:57.1]} 2. c4 {[%clk 0:02:59.4]}
2... e6 {[%clk 0:02:56.3]} 3. Nc3 {[%clk 0:02:59.2]} 3... c6 {[%clk 0:02:52.8]}
4. e4 {[%clk 0:02:57.4]} 4... Bb4 {[%clk 0:02:51.1]} 5. exd5 {[%clk 0:02:51.3]}
5... exd5 {[%clk 0:02:43.8]} 6. cxd5 {[%clk 0:02:45.4]} 6... cxd5 {[%clk
0:02:42.3]} 7. Nf3 {[%clk 0:02:30.9]} 7... Ne7 {[%clk 0:02:38.9]} 8. Bb5+ {[%clk
0:02:29.3]} 8... Nbc6 {[%clk 0:02:34.5]} 9. O-O {[%clk 0:02:28.9]} 9... O-O
{[%clk 0:02:34.2]} 10. Bg5 {[%clk 0:02:27.4]} 10... h6 {[%clk 0:02:31.2]} 11.
Bh4 {[%clk 0:02:25.2]} 11... Bg4 {[%clk 0:02:05.7]} 12. a3 {[%clk 0:02:10.4]}
12... Bxf3 {[%clk 0:01:54.8]} 13. Qxf3 {[%clk 0:01:34.7]} 13... Nxd4 {[%clk
0:01:55.2]} 14. Qd3 {[%clk 0:01:34]} 14... Bxc3 {[%clk 0:01:49.1]} 15. bxc3
{[%clk 0:01:32.5]} 15... Ndf5 {[%clk 0:01:45.7]} 16. Bxe7 {[%clk 0:00:51.8]}
16... Nxe7 {[%clk 0:01:46.6]} 17. Rfe1 {[%clk 0:00:49.2]} 17... Qc7 {[%clk
0:01:39]} 18. Rad1 {[%clk 0:00:42.3]} 18... Rad8 {[%clk 0:01:33.3]} 19. Qe3
{[%clk 0:00:39.4]} 19... Nf5 {[%clk 0:01:31.1]} 20. Qxa7 {[%clk 0:00:37.7]}
20... Ra8 {[%clk 0:01:29.9]} 0-1

[Event "Late-Titled-Tuesday-Blitz-January-30-2024"]
[Site "Chess.com"]
[Date "2024.01.30"]
[Round "4"]
[White "INLOVEWITHF"]
[Black "Hirna2005"]
[Result "1-0"]
[WhiteElo "2595"]
[BlackElo "2280"]
[TimeControl "180+1"]
[EndTime "14:36:39 PST"]
[Termination "INLOVEWITHF won by resignation"]

1. e4 {[%clk 0:02:10.6]} 1... g6 {[%clk 0:03:00.9]} 2. d4 {[%clk 0:02:10.3]}
2... Bg7 {[%clk 0:03:01.3]} 3. Nc3 {[%clk 0:02:10.9]} 3... d6 {[%clk 0:03:01.5]}
4. h4 {[%clk 0:02:11.3]} 4... h5 {[%clk 0:02:57.3]} 5. Be3 {[%clk 0:02:11]} 5...
Nf6 {[%clk 0:02:56.8]} 6. f3 {[%clk 0:02:10.7]} 6... a6 {[%clk 0:02:56.5]} 7.
Nh3 {[%clk 0:02:10.7]} 7... Bxh3 {[%clk 0:02:55.7]} 8. Rxh3 {[%clk 0:02:11.6]}
8... b5 {[%clk 0:02:55.8]} 9. Qd2 {[%clk 0:02:09.4]} 9... Nbd7 {[%clk
0:02:55.2]} 10. O-O-O {[%clk 0:02:08]} 10... Rc8 {[%clk 0:02:55.2]} 11. Kb1
{[%clk 0:02:03.2]} 11... c5 {[%clk 0:02:54]} 12. e5 {[%clk 0:02:02.4]} 12... Nh7
{[%clk 0:02:37.9]} 13. exd6 {[%clk 0:01:54]} 13... cxd4 {[%clk 0:02:30.7]} 14.
dxe7 {[%clk 0:01:45.7]} 14... Qxe7 {[%clk 0:02:09.8]} 15. Bxd4 {[%clk
0:01:44.9]} 15... Ne5 {[%clk 0:01:36.5]} 16. f4 {[%clk 0:01:39.9]} 16... O-O
{[%clk 0:01:13]} 17. Nd5 {[%clk 0:01:34.3]} 17... Qe6 {[%clk 0:01:07]} 18. Bxe5
{[%clk 0:01:32.8]} 18... f6 {[%clk 0:01:02.1]} 19. Bc3 {[%clk 0:01:30.8]} 19...
Rfd8 {[%clk 0:00:59.5]} 20. Rd3 {[%clk 0:01:29.8]} 20... Kf7 {[%clk 0:00:50.7]}
21. Re1 {[%clk 0:01:17.8]} 21... Qf5 {[%clk 0:00:36.4]} 22. Ne7 {[%clk
0:01:16.9]} 22... Rxd3 {[%clk 0:00:35.1]} 23. Bxd3 {[%clk 0:01:16.4]} 1-0

[Event "Late-Titled-Tuesday-Blitz-January-30-2024"]
[Site "Chess.com"]
[Date "2024.01.30"]
[Round "4"]
[White "ccccvhhhj"]
[Black "IlanSchnaider"]
[Result "0-1"]
[WhiteElo "2417"]
[BlackElo "2664"]
[TimeControl "180+1"]
[EndTime "14:36:43 PST"]
[Termination "IlanSchnaider won by resignation"]

1. e4 {[%clk 0:03:00.9]} 1... c5 {[%clk 0:02:59.5]} 2. Nf3 {[%clk 0:03:00.8]}
2... d6 {[%clk 0:02:59.3]} 3. d4 {[%clk 0:03:01.4]} 3... cxd4 {[%clk 0:03:00.1]}
4. Nxd4 {[%clk 0:03:02.3]} 4... Nf6 {[%clk 0:03:00.3]} 5. Nc3 {[%clk 0:03:02.9]}
5... a6 {[%clk 0:03:00.9]} 6. Rg1 {[%clk 0:03:03.6]} 6... b5 {[%clk 0:03:00.3]}
7. g4 {[%clk 0:03:03.7]} 7... Bb7 {[%clk 0:03:00.2]} 8. Nd5 {[%clk 0:03:00.1]}
8... Nxe4 {[%clk 0:02:28.5]} 9. Nb3 {[%clk 0:02:34.1]} 9... e6 {[%clk 0:02:24]}
10. Ne3 {[%clk 0:02:30.1]} 10... Qh4 {[%clk 0:02:18]} 11. Qe2 {[%clk 0:02:26.1]}
11... Qxh2 {[%clk 0:02:11.6]} 12. Rg2 {[%clk 0:02:26.4]} 12... Qe5 {[%clk
0:02:09]} 13. c3 {[%clk 0:02:13.6]} 13... Be7 {[%clk 0:02:00.5]} 14. Bd2 {[%clk
0:02:14]} 14... Nxd2 {[%clk 0:01:59.8]} 15. Qxd2 {[%clk 0:02:14.9]} 15... Bxg2
{[%clk 0:01:55.3]} 16. Bxg2 {[%clk 0:02:15.8]} 16... Ra7 {[%clk 0:01:55.7]} 17.
O-O-O {[%clk 0:02:15.8]} 17... Nd7 {[%clk 0:01:49.2]} 18. Nd4 {[%clk 0:02:14.6]}
18... Rc7 {[%clk 0:01:46.9]} 19. Nc6 {[%clk 0:02:12.8]} 19... Qc5 {[%clk
0:01:36.4]} 20. Nxe7 {[%clk 0:02:09.1]} 20... Kxe7 {[%clk 0:01:37.3]} 21. Re1
{[%clk 0:02:08]} 21... Kd8 {[%clk 0:01:32.2]} 22. Nc2 {[%clk 0:02:02.1]} 22...
Kc8 {[%clk 0:01:21.9]} 23. Nd4 {[%clk 0:02:02]} 23... Ne5 {[%clk 0:01:18.4]} 24.
Qe3 {[%clk 0:01:56.2]} 24... Nc4 {[%clk 0:01:09]} 25. Qe4 {[%clk 0:01:51.4]}
25... d5 {[%clk 0:01:09.2]} 26. Qe2 {[%clk 0:01:46.8]} 26... Nxb2 {[%clk
0:01:00.4]} 27. Qxb2 {[%clk 0:01:44.2]} 27... Qxd4 {[%clk 0:01:00.2]} 28. Re3
{[%clk 0:01:36.8]} 28... Qc5 {[%clk 0:00:57.9]} 29. a4 {[%clk 0:01:36.1]} 29...
d4 {[%clk 0:00:54.9]} 30. Rd3 {[%clk 0:01:31.3]} 30... dxc3 {[%clk 0:00:54.1]}
31. Qb3 {[%clk 0:01:31.5]} 31... Rd8 {[%clk 0:00:51.5]} 32. Re3 {[%clk
0:01:24.2]} 32... c2 {[%clk 0:00:49.4]} 0-1

[Event "Late-Titled-Tuesday-Blitz-January-30-2024"]
[Site "Chess.com"]
[Date "2024.01.30"]
[Round "4"]
[White "protectiago"]
[Black "Flaccidmoves"]
[Result "0-1"]
[WhiteElo "2069"]
[BlackElo "2457"]
[TimeControl "180+1"]
[EndTime "14:36:46 PST"]
[Termination "Flaccidmoves won by resignation"]

1. d4 {[%clk 0:02:59.8]} 1... Nf6 {[%clk 0:02:59.4]} 2. c4 {[%clk 0:02:59.8]}
2... g6 {[%clk 0:02:59.9]} 3. Nc3 {[%clk 0:02:58.2]} 3... d5 {[%clk 0:03:00.5]}
4. cxd5 {[%clk 0:02:57.9]} 4... Nxd5 {[%clk 0:03:01.4]} 5. e4 {[%clk 0:02:58.1]}
5... Nxc3 {[%clk 0:03:01.5]} 6. bxc3 {[%clk 0:02:58.8]} 6... Bg7 {[%clk
0:03:02.2]} 7. Be3 {[%clk 0:02:59.2]} 7... O-O {[%clk 0:03:01.8]} 8. Rc1 {[%clk
0:02:59.7]} 8... c5 {[%clk 0:03:00.1]} 9. Nf3 {[%clk 0:02:57.5]} 9... Bg4 {[%clk
0:02:49.9]} 10. Be2 {[%clk 0:02:49.2]} 10... Nc6 {[%clk 0:02:48.2]} 11. d5
{[%clk 0:02:49.3]} 11... Bxf3 {[%clk 0:02:47.6]} 12. Bxf3 {[%clk 0:02:48.9]}
12... Ne5 {[%clk 0:02:47.7]} 13. Be2 {[%clk 0:02:49]} 13... c4 {[%clk
0:02:46.2]} 14. f4 {[%clk 0:02:47.2]} 14... Nd3+ {[%clk 0:02:45.1]} 15. Bxd3
{[%clk 0:02:47]} 15... cxd3 {[%clk 0:02:46]} 16. Qxd3 {[%clk 0:02:47.3]} 16...
Qa5 {[%clk 0:02:45.1]} 17. O-O {[%clk 0:02:44.7]} 17... Rac8 {[%clk 0:02:39.1]}
18. c4 {[%clk 0:02:44.4]} 18... Qxa2 {[%clk 0:02:36.4]} 19. e5 {[%clk
0:02:41.6]} 19... Rfd8 {[%clk 0:02:17.3]} 20. Rf2 {[%clk 0:02:35.6]} 20... Qa4
{[%clk 0:02:13.9]} 21. Rb2 {[%clk 0:02:26.5]} 21... b6 {[%clk 0:02:08.3]} 22.
Rbb1 {[%clk 0:02:08.5]} 22... f6 {[%clk 0:02:04.9]} 23. Ra1 {[%clk 0:02:07.9]}
23... Qb4 {[%clk 0:02:04.4]} 24. e6 {[%clk 0:01:41.7]} 24... f5 {[%clk
0:02:02.2]} 25. Rxa7 {[%clk 0:01:41]} 25... Bf6 {[%clk 0:01:43.5]} 26. h3 {[%clk
0:01:31]} 26... Rd6 {[%clk 0:01:39.2]} 27. Bd4 {[%clk 0:01:03.1]} 27... Rxd5
{[%clk 0:01:38.9]} 28. Bc3 {[%clk 0:00:25.2]} 28... Qc5+ {[%clk 0:01:33]} 0-1

[Event "Late-Titled-Tuesday-Blitz-January-30-2024"]
[Site "Chess.com"]
[Date "2024.01.30"]
[Round "4"]
[White "Rawnsdale"]
[Black "Beca95"]
[Result "0-1"]
[WhiteElo "2550"]
[BlackElo "2967"]
[TimeControl "180+1"]
[EndTime "14:37:01 PST"]
[Termination "Beca95 won by resignation"]

1. e4 {[%clk 0:03:00.9]} 1... c5 {[%clk 0:02:58.3]} 2. Nf3 {[%clk 0:02:59.8]}
2... Nc6 {[%clk 0:02:58.6]} 3. d4 {[%clk 0:02:59.8]} 3... cxd4 {[%clk
0:02:59.5]} 4. Nxd4 {[%clk 0:03:00.3]} 4... Nf6 {[%clk 0:02:59.4]} 5. Nc3 {[%clk
0:03:00.3]} 5... d6 {[%clk 0:03:00]} 6. Bg5 {[%clk 0:02:58.5]} 6... Bd7 {[%clk
0:03:00]} 7. Qd2 {[%clk 0:02:57.9]} 7... Rc8 {[%clk 0:02:59.7]} 8. O-O-O {[%clk
0:02:56.1]} 8... Nxd4 {[%clk 0:02:57.9]} 9. Qxd4 {[%clk 0:02:54.4]} 9... Qa5
{[%clk 0:02:56.9]} 10. Bxf6 {[%clk 0:02:45.3]} 10... gxf6 {[%clk 0:02:56.3]} 11.
Kb1 {[%clk 0:02:39.4]} 11... Bg7 {[%clk 0:02:56]} 12. Nd5 {[%clk 0:02:31.7]}
12... Rg8 {[%clk 0:02:55.4]} 13. Qd2 {[%clk 0:02:10.2]} 13... Qxd2 {[%clk
0:02:55]} 14. Rxd2 {[%clk 0:02:11.1]} 14... f5 {[%clk 0:02:55.2]} 15. exf5
{[%clk 0:02:06.2]} 15... Bxf5 {[%clk 0:02:56.1]} 16. Bd3 {[%clk 0:02:05]} 16...
Bg6 {[%clk 0:02:49.1]} 17. Re1 {[%clk 0:01:59.4]} 17... e6 {[%clk 0:02:47.9]}
18. f4 {[%clk 0:01:43.7]} 18... Bxd3 {[%clk 0:02:41.7]} 19. Rxd3 {[%clk
0:01:42.7]} 19... Kd7 {[%clk 0:02:42.3]} 20. Ne3 {[%clk 0:01:40.2]} 20... Rc6
{[%clk 0:02:34]} 21. g3 {[%clk 0:01:40.2]} 21... b5 {[%clk 0:02:30.2]} 22. f5
{[%clk 0:01:38.7]} 22... Be5 {[%clk 0:02:25.8]} 23. Rf1 {[%clk 0:01:28.4]} 23...
Ke7 {[%clk 0:02:25.1]} 24. Ng2 {[%clk 0:01:17.9]} 24... Rc4 {[%clk 0:02:21.9]}
25. Nh4 {[%clk 0:01:16.3]} 25... Rgc8 {[%clk 0:02:08.7]} 26. Rd2 {[%clk
0:01:11.3]} 26... Rb4 {[%clk 0:02:04.9]} 27. b3 {[%clk 0:01:08]} 27... Re4
{[%clk 0:02:03.9]} 28. Rdf2 {[%clk 0:01:06]} 28... d5 {[%clk 0:01:54.6]} 29.
fxe6 {[%clk 0:01:04.6]} 29... fxe6 {[%clk 0:01:53.4]} 30. Rf7+ {[%clk
0:00:57.9]} 30... Kd6 {[%clk 0:01:53.5]} 31. Rxa7 {[%clk 0:00:57.9]} 31... Re2
{[%clk 0:01:48.2]} 32. Ra6+ {[%clk 0:00:54.6]} 32... Rc6 {[%clk 0:01:47.8]} 33.
Rxc6+ {[%clk 0:00:49.9]} 33... Kxc6 {[%clk 0:01:48.7]} 34. Nf3 {[%clk
0:00:50.4]} 34... Bc3 {[%clk 0:01:47.6]} 35. h4 {[%clk 0:00:47.4]} 35... e5
{[%clk 0:01:46.2]} 36. Ng5 {[%clk 0:00:43.2]} 36... e4 {[%clk 0:01:46.5]} 37.
Nxh7 {[%clk 0:00:42.7]} 37... e3 {[%clk 0:01:46.9]} 38. Ng5 {[%clk 0:00:40.9]}
38... Rf2 {[%clk 0:01:47]} 39. Rh1 {[%clk 0:00:20.1]} 39... e2 {[%clk
0:01:47.1]} 40. h5 {[%clk 0:00:20.2]} 40... Rf1+ {[%clk 0:01:47.1]} 0-1

[Event "Late-Titled-Tuesday-Blitz-January-30-2024"]
[Site "Chess.com"]
[Date "2024.01.30"]
[Round "4"]
[White "jamengrand"]
[Black "ImportedItalianMaple"]
[Result "0-1"]
[WhiteElo "2268"]
[BlackElo "2479"]
[TimeControl "180+1"]
[EndTime "14:37:03 PST"]
[Termination "ImportedItalianMaple won by resignation"]

1. e4 {[%clk 0:02:44.8]} 1... g6 {[%clk 0:02:59.5]} 2. d4 {[%clk 0:02:44.5]}
2... Bg7 {[%clk 0:02:58.9]} 3. Nc3 {[%clk 0:02:44.7]} 3... d5 {[%clk 0:02:59.2]}
4. exd5 {[%clk 0:02:37.2]} 4... Nf6 {[%clk 0:02:59.4]} 5. Bb5+ {[%clk
0:02:27.6]} 5... Nbd7 {[%clk 0:02:57.6]} 6. Nf3 {[%clk 0:02:20]} 6... O-O {[%clk
0:02:57.3]} 7. O-O {[%clk 0:02:19.2]} 7... Nb6 {[%clk 0:02:56.9]} 8. Ne5 {[%clk
0:02:18.6]} 8... Nbxd5 {[%clk 0:02:54.8]} 9. Nxd5 {[%clk 0:02:17]} 9... Nxd5
{[%clk 0:02:55.2]} 10. c4 {[%clk 0:02:16.6]} 10... Nf6 {[%clk 0:02:55.2]} 11.
Ba4 {[%clk 0:02:15.4]} 11... c5 {[%clk 0:02:46.5]} 12. dxc5 {[%clk 0:02:12.9]}
12... Ne4 {[%clk 0:02:46.3]} 13. Nd3 {[%clk 0:02:10.3]} 13... Bd4 {[%clk
0:02:20.6]} 14. Bh6 {[%clk 0:02:03.8]} 14... Bg7 {[%clk 0:02:17.1]} 15. Bxg7
{[%clk 0:02:01.9]} 15... Kxg7 {[%clk 0:02:18]} 16. Re1 {[%clk 0:01:56.1]} 16...
Qd4 {[%clk 0:02:04.9]} 17. b4 {[%clk 0:01:35]} 17... Nc3 {[%clk 0:01:59.2]} 18.
Qb3 {[%clk 0:01:08.8]} 18... Qxd3 {[%clk 0:01:30]} 19. Rxe7 {[%clk 0:01:04.2]}
19... Bf5 {[%clk 0:01:25.6]} 20. Rxb7 {[%clk 0:00:55.7]} 20... Nxa4 {[%clk
0:01:07.6]} 21. Qxa4 {[%clk 0:00:49.8]} 21... Qxc4 {[%clk 0:01:05.8]} 22. Qb3
{[%clk 0:00:41]} 22... Qe4 {[%clk 0:00:57.2]} 23. Qc3+ {[%clk 0:00:38.5]} 23...
Kg8 {[%clk 0:00:55.8]} 24. Re1 {[%clk 0:00:37.9]} 24... Qxb7 {[%clk 0:00:55.3]}
0-1

[Event "Late-Titled-Tuesday-Blitz-January-30-2024"]
[Site "Chess.com"]
[Date "2024.01.30"]
[Round "4"]
[White "Balla_Tamas"]
[Black "ukchessbomber"]
[Result "0-1"]
[WhiteElo "2406"]
[BlackElo "2612"]
[TimeControl "180+1"]
[EndTime "14:37:04 PST"]
[Termination "ukchessbomber won by resignation"]

1. e4 {[%clk 0:03:00.9]} 1... b6 {[%clk 0:03:00.9]} 2. d4 {[%clk 0:03:00.7]}
2... Bb7 {[%clk 0:03:01.8]} 3. Bd3 {[%clk 0:03:00.9]} 3... d6 {[%clk 0:03:02]}
4. Nf3 {[%clk 0:02:59.9]} 4... Nd7 {[%clk 0:03:02.4]} 5. c3 {[%clk 0:02:59.8]}
5... e5 {[%clk 0:03:02.1]} 6. O-O {[%clk 0:02:59.3]} 6... Ngf6 {[%clk
0:03:02.7]} 7. Re1 {[%clk 0:02:57.8]} 7... g6 {[%clk 0:03:03]} 8. Bg5 {[%clk
0:02:58]} 8... Bg7 {[%clk 0:03:02]} 9. Nbd2 {[%clk 0:02:56.7]} 9... O-O {[%clk
0:03:02.3]} 10. Qe2 {[%clk 0:02:56.7]} 10... h6 {[%clk 0:03:02.4]} 11. Bh4
{[%clk 0:02:56.5]} 11... a6 {[%clk 0:03:02.7]} 12. Bc2 {[%clk 0:02:54.7]} 12...
c5 {[%clk 0:03:02.8]} 13. dxe5 {[%clk 0:02:54.1]} 13... dxe5 {[%clk 0:03:03.7]}
14. Nc4 {[%clk 0:02:53.8]} 14... Qe7 {[%clk 0:03:02.5]} 15. Rad1 {[%clk
0:02:50.3]} 15... b5 {[%clk 0:02:59.4]} 16. Ne3 {[%clk 0:02:32.8]} 16... Qe6
{[%clk 0:02:56.5]} 17. Nd5 {[%clk 0:02:31.1]} 17... Nxd5 {[%clk 0:02:53.3]} 18.
exd5 {[%clk 0:02:32]} 18... Bxd5 {[%clk 0:02:53.5]} 19. Bg3 {[%clk 0:01:58.5]}
19... Bxa2 {[%clk 0:02:47.5]} 20. Be4 {[%clk 0:01:54]} 20... Rad8 {[%clk
0:02:37.5]} 21. b4 {[%clk 0:01:29.2]} 21... f5 {[%clk 0:02:14.6]} 22. Bc2 {[%clk
0:01:17.7]} 22... Bc4 {[%clk 0:01:58.5]} 23. Qd2 {[%clk 0:01:07.8]} 23... e4
{[%clk 0:01:34.8]} 24. bxc5 {[%clk 0:00:40.2]} 24... Nxc5 {[%clk 0:01:32.3]} 25.
Qxd8 {[%clk 0:00:39.6]} 25... Rxd8 {[%clk 0:01:33.2]} 26. Rxd8+ {[%clk
0:00:39.4]} 26... Kh7 {[%clk 0:01:34.1]} 27. Nd4 {[%clk 0:00:39.3]} 27... Qf6
{[%clk 0:01:28.6]} 28. Ra8 {[%clk 0:00:32.5]} 28... f4 {[%clk 0:01:28.6]} 29.
Bxe4 {[%clk 0:00:13.6]} 29... Nxe4 {[%clk 0:01:27.1]} 30. Rxe4 {[%clk
0:00:14.3]} 30... fxg3 {[%clk 0:01:27]} 31. Ree8 {[%clk 0:00:14.5]} 31... Qxf2+
{[%clk 0:01:26.7]} 0-1

[Event "Late-Titled-Tuesday-Blitz-January-30-2024"]
[Site "Chess.com"]
[Date "2024.01.30"]
[Round "4"]
[White "Mazetovic"]
[Black "HansOnTwitch"]
[Result "0-1"]
[WhiteElo "2612"]
[BlackElo "3205"]
[TimeControl "180+1"]
[EndTime "14:37:05 PST"]
[Termination "HansOnTwitch won by resignation"]

1. e4 {[%clk 0:03:00.9]} 1... c6 {[%clk 0:02:54.9]} 2. Nf3 {[%clk 0:02:57.1]}
2... d5 {[%clk 0:02:55.2]} 3. Nc3 {[%clk 0:02:57.7]} 3... Bg4 {[%clk 0:02:54.4]}
4. h3 {[%clk 0:02:58.1]} 4... Bxf3 {[%clk 0:02:54.7]} 5. Qxf3 {[%clk 0:02:57.8]}
5... e6 {[%clk 0:02:55.3]} 6. d4 {[%clk 0:02:56]} 6... Nf6 {[%clk 0:02:55.1]} 7.
Bd3 {[%clk 0:02:52.3]} 7... dxe4 {[%clk 0:02:51.5]} 8. Nxe4 {[%clk 0:02:52.5]}
8... Qxd4 {[%clk 0:02:51.6]} 9. c3 {[%clk 0:02:50.2]} 9... Qd8 {[%clk 0:02:37]}
10. O-O {[%clk 0:02:48.8]} 10... Nbd7 {[%clk 0:02:34.2]} 11. Rd1 {[%clk
0:02:46.1]} 11... Be7 {[%clk 0:02:31.4]} 12. Bc2 {[%clk 0:02:40.9]} 12... Nxe4
{[%clk 0:02:27.1]} 13. Qxe4 {[%clk 0:02:36.9]} 13... Qa5 {[%clk 0:02:20]} 14. b4
{[%clk 0:02:23.8]} 14... Qh5 {[%clk 0:02:16.6]} 15. b5 {[%clk 0:02:02.6]} 15...
Nf6 {[%clk 0:02:14]} 16. Qe3 {[%clk 0:01:28.4]} 16... cxb5 {[%clk 0:02:12.5]}
17. g4 {[%clk 0:01:18.7]} 17... Qc5 {[%clk 0:02:11.2]} 18. Qf3 {[%clk 0:01:13]}
18... Qc6 {[%clk 0:02:11.1]} 19. Qg3 {[%clk 0:00:50.3]} 19... h5 {[%clk
0:02:10.9]} 20. g5 {[%clk 0:00:48.6]} 20... h4 {[%clk 0:02:11]} 21. Qe3 {[%clk
0:00:29.8]} 21... Nd5 {[%clk 0:02:10.2]} 22. Qe1 {[%clk 0:00:19]} 22... Qxc3
{[%clk 0:01:49]} 23. Qe4 {[%clk 0:00:16.6]} 23... Rc8 {[%clk 0:01:44.4]} 24. Bd3
{[%clk 0:00:08.6]} 24... Qxa1 {[%clk 0:01:42.6]} 25. g6 {[%clk 0:00:05.9]} 25...
Qf6 {[%clk 0:01:41]} 26. Bxb5+ {[%clk 0:00:05.1]} 26... Kf8 {[%clk 0:01:41]} 27.
gxf7 {[%clk 0:00:02.4]} 27... Rxc1 {[%clk 0:01:40.8]} 28. Rxc1 {[%clk
0:00:02.3]} 28... Qg5+ {[%clk 0:01:40.9]} 29. Kh2 {[%clk 0:00:02.8]} 29... Bd6+
{[%clk 0:01:40.7]} 30. f4 {[%clk 0:00:02.3]} 30... Qxf4+ {[%clk 0:01:37.6]} 31.
Qxf4 {[%clk 0:00:01.8]} 31... Bxf4+ {[%clk 0:01:38.2]} 0-1

[Event "Late-Titled-Tuesday-Blitz-January-30-2024"]
[Site "Chess.com"]
[Date "2024.01.30"]
[Round "4"]
[White "GMAkobianSTL"]
[Black "valeriocarnicelli"]
[Result "1-0"]
[WhiteElo "2724"]
[BlackElo "2539"]
[TimeControl "180+1"]
[EndTime "14:37:05 PST"]
[Termination "GMAkobianSTL won on time"]

1. d4 {[%clk 0:02:59.6]} 1... Nf6 {[%clk 0:03:00]} 2. c4 {[%clk 0:02:59.4]} 2...
c5 {[%clk 0:03:00.3]} 3. d5 {[%clk 0:02:59.4]} 3... b5 {[%clk 0:03:00.5]} 4. Nf3
{[%clk 0:02:58.1]} 4... bxc4 {[%clk 0:02:55]} 5. Nc3 {[%clk 0:02:57.8]} 5... g6
{[%clk 0:02:53.4]} 6. e4 {[%clk 0:02:57.9]} 6... d6 {[%clk 0:02:53.8]} 7. Bxc4
{[%clk 0:02:57.5]} 7... Bg7 {[%clk 0:02:54.2]} 8. e5 {[%clk 0:02:57.4]} 8...
dxe5 {[%clk 0:02:51.4]} 9. Nxe5 {[%clk 0:02:57.7]} 9... O-O {[%clk 0:02:51.7]}
10. O-O {[%clk 0:02:57.7]} 10... Ne8 {[%clk 0:02:51.6]} 11. Re1 {[%clk
0:02:57.6]} 11... Nd6 {[%clk 0:02:51.7]} 12. Bb3 {[%clk 0:02:48.1]} 12... Bb7
{[%clk 0:02:46.6]} 13. Bf4 {[%clk 0:02:47.3]} 13... Re8 {[%clk 0:02:33.3]} 14.
Qd3 {[%clk 0:02:44.1]} 14... Qb6 {[%clk 0:02:18.4]} 15. Rad1 {[%clk 0:02:42.5]}
15... a5 {[%clk 0:02:16.5]} 16. Nc4 {[%clk 0:02:27.6]} 16... Nxc4 {[%clk
0:02:13.4]} 17. Bxc4 {[%clk 0:02:27.5]} 17... Nd7 {[%clk 0:02:09.5]} 18. b3
{[%clk 0:02:25.3]} 18... Qf6 {[%clk 0:01:59.3]} 19. Bd2 {[%clk 0:02:20.1]} 19...
Ne5 {[%clk 0:01:57.5]} 20. Qe2 {[%clk 0:02:19.4]} 20... Nxc4 {[%clk 0:01:56.3]}
21. bxc4 {[%clk 0:02:19.2]} 21... a4 {[%clk 0:01:49.9]} 22. Ne4 {[%clk
0:02:15.9]} 22... Qb6 {[%clk 0:01:18.5]} 23. Rb1 {[%clk 0:02:11.3]} 23... Qc7
{[%clk 0:01:13.3]} 24. Bc3 {[%clk 0:02:11.1]} 24... Bxc3 {[%clk 0:00:52.6]} 25.
Nxc3 {[%clk 0:02:10.4]} 25... e6 {[%clk 0:00:53.3]} 26. Nb5 {[%clk 0:02:07.7]}
26... Qd7 {[%clk 0:00:49.6]} 27. d6 {[%clk 0:02:07.7]} 27... Qc6 {[%clk
0:00:40.3]} 28. f3 {[%clk 0:02:07.2]} 28... Red8 {[%clk 0:00:38.4]} 29. Qe5
{[%clk 0:02:05.3]} 29... Rd7 {[%clk 0:00:37.5]} 30. Nc3 {[%clk 0:02:02]} 30...
Qa6 {[%clk 0:00:11]} 31. Nb5 {[%clk 0:02:00.9]} 31... Qc6 {[%clk 0:00:10.5]} 32.
h4 {[%clk 0:01:58.5]} 32... a3 {[%clk 0:00:10.7]} 33. h5 {[%clk 0:01:58.5]}
33... Rf8 {[%clk 0:00:09]} 34. Qf6 {[%clk 0:01:56.4]} 34... gxh5 {[%clk
0:00:07.1]} 35. Re5 {[%clk 0:01:53.8]} 35... h6 {[%clk 0:00:04.6]} 36. Rxh5
{[%clk 0:01:51.1]} 1-0